[Event "Titled Tuesday Blitz February 21 Late 2023"]
[White "Nilsen, Tobias Lang"]
[Black "Kramnik, Vladimir"]
[WhiteFideId "1521624"]
[BlackFideId "4101588"]
[WhiteElo "2247"]
[BlackElo "2753"]
[Result "0-1"]
[Round "03"]
[TimeControl "180+2"]
[Date "2023.02.21"]
[WhiteClock "0:00:04"]
[BlackClock "0:00:11"]

1. e4 {[%clk 0:03:00]}  c5 {[%clk 0:02:59]} 2. Nf3 {[%clk 0:03:00]}  e6 {[%clk 0:02:59]} 3. d4 {[%clk 0:03:01]}  cxd4 {[%clk 0:02:58]} 4. Nxd4 {[%clk 0:03:02]}  a6 {[%clk 0:02:59]} 5. c4 {[%clk 0:03:02]}  Nf6 {[%clk 0:02:58]} 6. Nc3 {[%clk 0:03:02]}  Qc7 {[%clk 0:02:58]} 7. a3 {[%clk 0:03:01]}  b6 {[%clk 0:02:57]} 8. Qd3 {[%clk 0:02:56]}  Bb7 {[%clk 0:02:55]} 9. Be2 {[%clk 0:02:55]}  d6 {[%clk 0:02:52]} 10. f4 {[%clk 0:02:55]}  Nbd7 {[%clk 0:02:51]} 11. b4 {[%clk 0:02:55]}  g6 {[%clk 0:02:42]} 12. Bb2 {[%clk 0:02:54]}  e5 {[%clk 0:02:34]} 13. Nf3 {[%clk 0:02:52]}  exf4 {[%clk 0:02:28]} 14. O-O {[%clk 0:02:50]}  Ne5 {[%clk 0:02:22]} 15. Nxe5 {[%clk 0:02:40]}  dxe5 {[%clk 0:02:22]} 16. Rae1 {[%clk 0:02:33]}  Bd6 {[%clk 0:02:12]} 17. Nd5 {[%clk 0:02:13]}  Bxd5 {[%clk 0:02:09]} 18. exd5 {[%clk 0:02:14]}  O-O {[%clk 0:02:06]} 19. g3 {[%clk 0:02:01]}  Nd7 {[%clk 0:01:42]} 20. gxf4 {[%clk 0:01:53]}  exf4 {[%clk 0:01:42]} 21. Bf3 {[%clk 0:01:46]}  Rae8 {[%clk 0:01:37]} 22. Bd4 {[%clk 0:01:29]}  Be5 {[%clk 0:01:34]} 23. Bg4 {[%clk 0:01:16]}  f5 {[%clk 0:01:33]} 24. Bd1 {[%clk 0:01:13]}  Qd6 {[%clk 0:01:27]} 25. Bb3 {[%clk 0:01:11]}  Qf6 {[%clk 0:00:57]} 26. Bf2 {[%clk 0:01:06]}  Kg7 {[%clk 0:00:45]} 27. c5 {[%clk 0:01:02]}  bxc5 {[%clk 0:00:45]} 28. bxc5 {[%clk 0:01:03]}  f3 {[%clk 0:00:42]} 29. Qxf3 {[%clk 0:00:53]}  Bd4 {[%clk 0:00:42]} 30. c6 {[%clk 0:00:49]}  Ne5 {[%clk 0:00:38]} 31. Rxe5 {[%clk 0:00:18]}  Qxe5 {[%clk 0:00:37]} 32. Kg2 {[%clk 0:00:14]}  Bxf2 {[%clk 0:00:35]} 33. Rxf2 {[%clk 0:00:15]}  Qd4 {[%clk 0:00:27]} 34. Re2 {[%clk 0:00:11]}  Re4 {[%clk 0:00:25]} 35. Bc2 {[%clk 0:00:07]}  Rg4+ {[%clk 0:00:24]} 36. Kh3 {[%clk 0:00:06]}  Rf4 {[%clk 0:00:21]} 37. Qe3 {[%clk 0:00:05]}  Rh4+ {[%clk 0:00:18]} 38. Kg2 {[%clk 0:00:05]}  Qg4+ {[%clk 0:00:17]} 39. Kf1 {[%clk 0:00:05]}  Rh3 {[%clk 0:00:15]} 40. Qe7+ {[%clk 0:00:05]}  Rf7 {[%clk 0:00:15]} 41. Qe5+ {[%clk 0:00:05]}  Kh6 {[%clk 0:00:15]} 42. Bd1 {[%clk 0:00:05]}  Rd3 {[%clk 0:00:12]} 43. Ke1 {[%clk 0:00:04]}  Qg1# {[%clk 0:00:11]} 0-1


[Site "https://www.chess.com"]

[Event "Titled Tuesday Blitz February 21 Late 2023"]
[White "Postma, Dinant"]
[Black "Babazada, Khazar"]
[WhiteFideId "1018612"]
[BlackFideId "13413554"]
[WhiteElo "2131"]
[BlackElo "2474"]
[Result "0-1"]
[Round "03"]
[TimeControl "180+2"]
[Date "2023.02.21"]
[WhiteClock "0:00:02"]
[BlackClock "0:01:01"]

1. d4 {[%clk 0:03:00]}  Nc6 {[%clk 0:02:57]} 2. Nf3 {[%clk 0:02:56]}  d5 {[%clk 0:02:57]} 3. c4 {[%clk 0:02:56]}  e5 {[%clk 0:02:54]} 4. dxe5 {[%clk 0:02:52]}  d4 {[%clk 0:02:55]} 5. a3 {[%clk 0:02:52]}  a5 {[%clk 0:02:52]} 6. Nbd2 {[%clk 0:02:48]}  Bg4 {[%clk 0:02:49]} 7. h3 {[%clk 0:02:48]}  Bh5 {[%clk 0:02:47]} 8. Qb3 {[%clk 0:02:43]}  Nge7 {[%clk 0:02:41]} 9. g4 {[%clk 0:02:40]}  Bg6 {[%clk 0:02:38]} 10. Bg2 {[%clk 0:02:40]}  a4 {[%clk 0:02:37]} 11. Qxb7 {[%clk 0:02:35]}  Rb8 {[%clk 0:02:14]} 12. Qa6 {[%clk 0:02:33]}  Bc2 {[%clk 0:02:15]} 13. c5 {[%clk 0:02:19]}  d3 {[%clk 0:02:10]} 14. Qc4 {[%clk 0:01:56]}  Ng6 {[%clk 0:02:01]} 15. exd3 {[%clk 0:01:45]}  Bxd3 {[%clk 0:01:57]} 16. Qxa4 {[%clk 0:01:45]}  Bb5 {[%clk 0:01:52]} 17. Qc2 {[%clk 0:01:37]}  Nf4 {[%clk 0:01:47]} 18. Bf1 {[%clk 0:01:33]}  Nd3+ {[%clk 0:01:48]} 19. Bxd3 {[%clk 0:01:33]}  Bxd3 {[%clk 0:01:49]} 20. Qc3 {[%clk 0:01:32]}  Qd5 {[%clk 0:01:46]} 21. b4 {[%clk 0:01:26]}  h5 {[%clk 0:01:47]} 22. g5 {[%clk 0:01:20]}  Be7 {[%clk 0:01:46]} 23. Rg1 {[%clk 0:01:13]}  O-O {[%clk 0:01:46]} 24. Bb2 {[%clk 0:01:11]}  Rfd8 {[%clk 0:01:46]} 25. Rg3 {[%clk 0:00:51]}  Na7 {[%clk 0:01:41]} 26. Qb3 {[%clk 0:00:35]}  Qd7 {[%clk 0:01:31]} 27. g6 {[%clk 0:00:35]}  Bf5 {[%clk 0:01:15]} 28. Qxf7+ {[%clk 0:00:25]}  Kh8 {[%clk 0:01:14]} 29. e6 {[%clk 0:00:10]}  Qxe6+ {[%clk 0:01:12]} 30. Qxe6 {[%clk 0:00:10]}  Bxe6 {[%clk 0:01:13]} 31. Ng5 {[%clk 0:00:06]}  Bd5 {[%clk 0:01:07]} 32. Nf7+ {[%clk 0:00:05]}  Bxf7 {[%clk 0:01:07]} 33. gxf7 {[%clk 0:00:06]}  Bf6 {[%clk 0:01:08]} 34. Bxf6 {[%clk 0:00:05]}  gxf6 {[%clk 0:01:07]} 35. O-O-O {[%clk 0:00:06]}  Nb5 {[%clk 0:01:05]} 36. Ne4 {[%clk 0:00:05]}  Nd4 {[%clk 0:01:04]} 37. Re1 {[%clk 0:00:02]}  Rf8 {[%clk 0:01:02]} 38. Nxf6 {[%clk 0:00:02]}  Rxf7 {[%clk 0:01:03]} 39. Nxh5 {[%clk 0:00:02]}  Rxf2 {[%clk 0:01:03]} 40. Re4 {[%clk 0:00:02]}  Ne2+ {[%clk 0:01:01]} 41. Rxe2 {[%clk 0:00:01]}  Rxe2 {[%clk 0:01:02]} 42. Nf6 {[%clk 0:00:02]}  Rf8 {[%clk 0:01:01]} 0-1


[Site "https://www.chess.com"]

[Event "Titled Tuesday Blitz February 21 Late 2023"]
[White "Mikaelyan, Arman"]
[Black "Leenhouts, Koen"]
[WhiteFideId "13304852"]
[BlackFideId "1008439"]
[WhiteElo "2523"]
[BlackElo "2447"]
[Result "0-1"]
[Round "03"]
[TimeControl "180+2"]
[Date "2023.02.21"]
[WhiteClock "0:00:01"]
[BlackClock "0:00:04"]

1. b4 {[%clk 0:03:00]}  e5 {[%clk 0:02:56]} 2. Bb2 {[%clk 0:03:01]}  Bxb4 {[%clk 0:02:54]} 3. f4 {[%clk 0:03:01]}  d6 {[%clk 0:02:34]} 4. fxe5 {[%clk 0:02:55]}  dxe5 {[%clk 0:02:33]} 5. Bxe5 {[%clk 0:02:42]}  Nf6 {[%clk 0:02:32]} 6. Nf3 {[%clk 0:02:42]}  Nc6 {[%clk 0:02:31]} 7. Bb2 {[%clk 0:01:30]}  Bg4 {[%clk 0:02:25]} 8. e3 {[%clk 0:01:29]}  Qe7 {[%clk 0:02:20]} 9. Nc3 {[%clk 0:01:11]}  Nd4 {[%clk 0:01:59]} 10. Be2 {[%clk 0:01:07]}  Nxe2 {[%clk 0:01:59]} 11. Qxe2 {[%clk 0:01:08]}  O-O {[%clk 0:01:47]} 12. O-O {[%clk 0:01:08]}  Rad8 {[%clk 0:01:43]} 13. h3 {[%clk 0:00:56]}  Bh5 {[%clk 0:01:41]} 14. a3 {[%clk 0:00:45]}  Bc5 {[%clk 0:01:39]} 15. Rad1 {[%clk 0:00:41]}  Bxa3 {[%clk 0:01:24]} 16. Ba1 {[%clk 0:00:36]}  Rfe8 {[%clk 0:01:15]} 17. Kh1 {[%clk 0:00:35]}  Bb4 {[%clk 0:01:11]} 18. Nb1 {[%clk 0:00:25]}  Ne4 {[%clk 0:01:07]} 19. Qe1 {[%clk 0:00:26]}  Bd6 {[%clk 0:01:06]} 20. Kg1 {[%clk 0:00:26]}  Ng3 {[%clk 0:00:53]} 21. Rf2 {[%clk 0:00:26]}  Ne4 {[%clk 0:00:54]} 22. Rf1 {[%clk 0:00:26]}  a5 {[%clk 0:00:50]} 23. Nc3 {[%clk 0:00:24]}  Ng3 {[%clk 0:00:40]} 24. Rf2 {[%clk 0:00:24]}  c6 {[%clk 0:00:40]} 25. Nd4 {[%clk 0:00:22]}  Bb8 {[%clk 0:00:37]} 26. Nce2 {[%clk 0:00:16]}  c5 {[%clk 0:00:23]} 27. Nf3 {[%clk 0:00:14]}  Qd6 {[%clk 0:00:18]} 28. Nf4 {[%clk 0:00:13]}  Bg6 {[%clk 0:00:11]} 29. Rb1 {[%clk 0:00:09]}  Ne4 {[%clk 0:00:10]} 30. Rf1 {[%clk 0:00:09]}  b6 {[%clk 0:00:10]} 31. Rd1 {[%clk 0:00:09]}  Qe7 {[%clk 0:00:07]} 32. Nh4 {[%clk 0:00:07]}  Nf6 {[%clk 0:00:05]} 33. Nhxg6 {[%clk 0:00:05]}  hxg6 {[%clk 0:00:06]} 34. Qf2 {[%clk 0:00:04]}  Ne4 {[%clk 0:00:06]} 35. Qe1 {[%clk 0:00:03]}  Be5 {[%clk 0:00:07]} 36. Bxe5 {[%clk 0:00:02]}  Qxe5 {[%clk 0:00:08]} 37. Nd3 {[%clk 0:00:03]}  Qe7 {[%clk 0:00:07]} 38. Rb1 {[%clk 0:00:03]}  Qc7 {[%clk 0:00:06]} 39. Rf4 {[%clk 0:00:04]}  Nf6 {[%clk 0:00:06]} 40. Qe2 {[%clk 0:00:04]}  Nd5 {[%clk 0:00:06]} 41. Rh4 {[%clk 0:00:03]}  Qe7 {[%clk 0:00:06]} 42. Qf2 {[%clk 0:00:03]}  g5 {[%clk 0:00:06]} 43. Rg4 {[%clk 0:00:03]}  Nf6 {[%clk 0:00:07]} 44. Rc4 {[%clk 0:00:02]}  Ne4 {[%clk 0:00:07]} 45. Qe2 {[%clk 0:00:02]}  Nd6 {[%clk 0:00:08]} 46. Rc3 {[%clk 0:00:02]}  c4 {[%clk 0:00:08]} 47. Nf2 {[%clk 0:00:02]}  b5 {[%clk 0:00:08]} 48. Ra3 {[%clk 0:00:03]}  Ne4 {[%clk 0:00:07]} 49. Nxe4 {[%clk 0:00:02]}  Qxa3 {[%clk 0:00:06]} 50. Nxg5 {[%clk 0:00:03]}  Qe7 {[%clk 0:00:07]} 51. Qh5 {[%clk 0:00:03]}  Qf6 {[%clk 0:00:06]} 52. Rf1 {[%clk 0:00:02]}  Qg6 {[%clk 0:00:06]} 53. Qh4 {[%clk 0:00:02]}  Rd5 {[%clk 0:00:06]} 54. Nxf7 {[%clk 0:00:01]}  Rh5 {[%clk 0:00:04]} 0-1


[Site "https://www.chess.com"]

[Event "Titled Tuesday Blitz February 21 Late 2023"]
[White "Mortazavi, Ali"]
[Black "KhalilMousavi98"]
[WhiteFideId "401323"]
[WhiteElo "2333"]
[BlackElo "2871"]
[Result "0-1"]
[Round "03"]
[TimeControl "180+2"]
[Date "2023.02.21"]
[WhiteClock "0:00:01"]
[BlackClock "0:00:34"]

1. e4 {[%clk 0:02:56]}  c5 {[%clk 0:02:59]} 2. Nc3 {[%clk 0:02:56]}  e6 {[%clk 0:02:57]} 3. Nf3 {[%clk 0:02:56]}  Nc6 {[%clk 0:02:57]} 4. g3 {[%clk 0:02:56]}  g6 {[%clk 0:02:57]} 5. d4 {[%clk 0:02:55]}  cxd4 {[%clk 0:02:56]} 6. Nxd4 {[%clk 0:02:55]}  a6 {[%clk 0:02:57]} 7. Bg2 {[%clk 0:02:47]}  Bg7 {[%clk 0:02:56]} 8. Be3 {[%clk 0:02:43]}  Nge7 {[%clk 0:02:46]} 9. O-O {[%clk 0:02:43]}  O-O {[%clk 0:02:37]} 10. a4 {[%clk 0:02:42]}  d5 {[%clk 0:02:33]} 11. Nxc6 {[%clk 0:02:39]}  bxc6 {[%clk 0:02:34]} 12. Bc5 {[%clk 0:02:33]}  Rb8 {[%clk 0:02:33]} 13. Rb1 {[%clk 0:02:21]}  Re8 {[%clk 0:02:32]} 14. Kh1 {[%clk 0:01:59]}  a5 {[%clk 0:02:31]} 15. f4 {[%clk 0:01:52]}  Ba6 {[%clk 0:02:29]} 16. Rf2 {[%clk 0:01:52]}  d4 {[%clk 0:02:25]} 17. Rd2 {[%clk 0:01:43]}  e5 {[%clk 0:01:49]} 18. fxe5 {[%clk 0:01:28]}  Bxe5 {[%clk 0:01:49]} 19. Bxd4 {[%clk 0:01:28]}  Bxd4 {[%clk 0:01:48]} 20. Rxd4 {[%clk 0:01:28]}  Qc7 {[%clk 0:01:45]} 21. e5 {[%clk 0:00:58]}  Qxe5 {[%clk 0:01:42]} 22. Re4 {[%clk 0:00:47]}  Qc7 {[%clk 0:01:35]} 23. Qe1 {[%clk 0:00:45]}  Rb4 {[%clk 0:01:23]} 24. Qe3 {[%clk 0:00:36]}  Rxe4 {[%clk 0:01:19]} 25. Qxe4 {[%clk 0:00:30]}  Rb8 {[%clk 0:01:18]} 26. Re1 {[%clk 0:00:28]}  Nf5 {[%clk 0:01:19]} 27. Qg4 {[%clk 0:00:15]}  Rxb2 {[%clk 0:01:14]} 28. Ne4 {[%clk 0:00:14]}  Qe5 {[%clk 0:01:12]} 29. Rd1 {[%clk 0:00:08]}  Ne3 {[%clk 0:01:12]} 30. Qh4 {[%clk 0:00:01]}  Nxd1 {[%clk 0:00:57]} 31. Nf6+ {[%clk 0:00:01]}  Kg7 {[%clk 0:00:57]} 32. Qxh7+ {[%clk 0:00:02]}  Kxf6 {[%clk 0:00:58]} 33. Qh8+ {[%clk 0:00:02]}  Ke6 {[%clk 0:00:55]} 34. Qe8+ {[%clk 0:00:02]}  Kd6 {[%clk 0:00:54]} 35. Qd8+ {[%clk 0:00:02]}  Kc5 {[%clk 0:00:48]} 36. Qxa5+ {[%clk 0:00:02]}  Bb5 {[%clk 0:00:39]} 37. Qa7+ {[%clk 0:00:02]}  Kb4 {[%clk 0:00:38]} 38. h4 {[%clk 0:00:01]}  Rxc2 {[%clk 0:00:34]} 0-1


[Site "https://www.chess.com"]

[Event "Titled Tuesday Blitz February 21 Late 2023"]
[White "Pakleza, Zbigniew"]
[Black "CheckBits"]
[WhiteFideId "1119290"]
[WhiteElo "2494"]
[BlackElo "2452"]
[Result "1-0"]
[Round "03"]
[TimeControl "180+2"]
[Date "2023.02.21"]
[WhiteClock "0:00:36"]
[BlackClock "0:00:03"]

1. d4 {[%clk 0:03:00]}  Nf6 {[%clk 0:02:56]} 2. Nf3 {[%clk 0:03:00]}  e6 {[%clk 0:02:56]} 3. Bf4 {[%clk 0:02:58]}  c5 {[%clk 0:02:54]} 4. c3 {[%clk 0:02:57]}  Qb6 {[%clk 0:02:52]} 5. Qb3 {[%clk 0:02:57]}  Nc6 {[%clk 0:02:45]} 6. e3 {[%clk 0:02:57]}  d5 {[%clk 0:02:45]} 7. Nbd2 {[%clk 0:02:56]}  Be7 {[%clk 0:02:34]} 8. h3 {[%clk 0:02:56]}  c4 {[%clk 0:02:21]} 9. Qc2 {[%clk 0:02:55]}  Bd7 {[%clk 0:02:16]} 10. b3 {[%clk 0:02:55]}  cxb3 {[%clk 0:02:14]} 11. axb3 {[%clk 0:02:56]}  O-O {[%clk 0:02:11]} 12. Bd3 {[%clk 0:02:52]}  Rfc8 {[%clk 0:02:08]} 13. Qb2 {[%clk 0:02:53]}  Qd8 {[%clk 0:02:04]} 14. b4 {[%clk 0:02:48]}  a6 {[%clk 0:01:47]} 15. O-O {[%clk 0:02:45]}  Be8 {[%clk 0:01:43]} 16. Nb3 {[%clk 0:02:42]}  Nd7 {[%clk 0:01:41]} 17. Nc5 {[%clk 0:02:37]}  Nxc5 {[%clk 0:01:09]} 18. bxc5 {[%clk 0:02:38]}  Ra7 {[%clk 0:01:04]} 19. Rfb1 {[%clk 0:02:34]}  f6 {[%clk 0:01:01]} 20. Qc2 {[%clk 0:02:32]}  h6 {[%clk 0:00:55]} 21. Bg3 {[%clk 0:02:30]}  Bf7 {[%clk 0:00:46]} 22. Rb6 {[%clk 0:02:25]}  Qd7 {[%clk 0:00:41]} 23. Rab1 {[%clk 0:02:24]}  Rca8 {[%clk 0:00:40]} 24. Bh7+ {[%clk 0:01:44]}  Kh8 {[%clk 0:00:39]} 25. Bg6 {[%clk 0:01:44]}  Bd8 {[%clk 0:00:35]} 26. R6b2 {[%clk 0:01:37]}  Bxg6 {[%clk 0:00:25]} 27. Qxg6 {[%clk 0:01:38]}  a5 {[%clk 0:00:25]} 28. Nd2 {[%clk 0:01:00]}  a4 {[%clk 0:00:21]} 29. Ra2 {[%clk 0:01:00]}  Ra6 {[%clk 0:00:14]} 30. Qd3 {[%clk 0:00:52]}  b6 {[%clk 0:00:12]} 31. cxb6 {[%clk 0:00:50]}  Bxb6 {[%clk 0:00:10]} 32. c4 {[%clk 0:00:48]}  dxc4 {[%clk 0:00:08]} 33. Nxc4 {[%clk 0:00:48]}  Bc7 {[%clk 0:00:06]} 34. Bxc7 {[%clk 0:00:35]}  Qxc7 {[%clk 0:00:06]} 35. Rab2 {[%clk 0:00:36]}  a3 {[%clk 0:00:03]} 36. Ra2 {[%clk 0:00:36]} 1-0


[Site "https://www.chess.com"]

[Event "Titled Tuesday Blitz February 21 Late 2023"]
[White "Bambino Filho, Antonio Carlos"]
[Black "Quispe Arteaga, Gabriel"]
[WhiteFideId "2113163"]
[BlackFideId "32059809"]
[WhiteElo "2144"]
[BlackElo "2381"]
[Result "0-1"]
[Round "03"]
[TimeControl "180+2"]
[Date "2023.02.21"]
[WhiteClock "0:01:35"]
[BlackClock "0:00:39"]

1. d4 {[%clk 0:03:00]}  Nf6 {[%clk 0:01:34]} 2. c4 {[%clk 0:02:56]}  e6 {[%clk 0:01:34]} 3. Nc3 {[%clk 0:02:56]}  Bb4 {[%clk 0:01:35]} 4. Qc2 {[%clk 0:02:56]}  O-O {[%clk 0:01:33]} 5. a3 {[%clk 0:02:57]}  Bxc3+ {[%clk 0:01:33]} 6. Qxc3 {[%clk 0:02:58]}  d5 {[%clk 0:01:34]} 7. Bg5 {[%clk 0:02:56]}  c5 {[%clk 0:01:35]} 8. dxc5 {[%clk 0:02:50]}  d4 {[%clk 0:01:35]} 9. Qd2 {[%clk 0:02:46]}  e5 {[%clk 0:01:32]} 10. e3 {[%clk 0:02:35]}  Nc6 {[%clk 0:01:31]} 11. Nf3 {[%clk 0:02:34]}  Bf5 {[%clk 0:01:19]} 12. Rd1 {[%clk 0:02:30]}  h6 {[%clk 0:00:57]} 13. Bxf6 {[%clk 0:01:59]}  Qxf6 {[%clk 0:00:56]} 14. exd4 {[%clk 0:02:00]}  exd4 {[%clk 0:00:57]} 15. Bd3 {[%clk 0:01:59]}  Rfe8+ {[%clk 0:00:56]} 16. Kf1 {[%clk 0:02:00]}  Bg4 {[%clk 0:00:57]} 17. Re1 {[%clk 0:01:45]}  Bxf3 {[%clk 0:00:54]} 18. gxf3 {[%clk 0:01:42]}  Qxf3 {[%clk 0:00:54]} 19. Rg1 {[%clk 0:01:36]}  Qh3+ {[%clk 0:00:39]} 20. Rg2 {[%clk 0:01:35]}  Rxe1+ {[%clk 0:00:39]} 0-1


[Site "https://www.chess.com"]

[Event "Titled Tuesday Blitz February 21 Late 2023"]
[White "Maksimovic, Bojan"]
[Black "Becerra, Juan David"]
[WhiteFideId "14408120"]
[BlackFideId "4404998"]
[WhiteElo "2486"]
[BlackElo "2382"]
[Result "1-0"]
[Round "03"]
[TimeControl "180+2"]
[Date "2023.02.21"]
[WhiteClock "0:01:16"]
[BlackClock "0:00:09"]

1. e4 {[%clk 0:03:00]}  e5 {[%clk 0:02:59]} 2. Nf3 {[%clk 0:03:01]}  Nc6 {[%clk 0:02:59]} 3. Bb5 {[%clk 0:03:02]}  f5 {[%clk 0:02:58]} 4. d3 {[%clk 0:03:01]}  fxe4 {[%clk 0:02:58]} 5. dxe4 {[%clk 0:03:02]}  d6 {[%clk 0:02:58]} 6. O-O {[%clk 0:02:58]}  Be7 {[%clk 0:02:57]} 7. h3 {[%clk 0:02:53]}  Nf6 {[%clk 0:02:56]} 8. Bc4 {[%clk 0:02:53]}  Na5 {[%clk 0:02:55]} 9. Be2 {[%clk 0:02:52]}  O-O {[%clk 0:02:52]} 10. b4 {[%clk 0:02:52]}  Nc6 {[%clk 0:02:52]} 11. b5 {[%clk 0:02:53]}  Nb8 {[%clk 0:02:51]} 12. Nc3 {[%clk 0:02:47]}  h6 {[%clk 0:02:49]} 13. a4 {[%clk 0:02:31]}  Be6 {[%clk 0:02:48]} 14. a5 {[%clk 0:02:30]}  Nbd7 {[%clk 0:02:43]} 15. a6 {[%clk 0:02:30]}  b6 {[%clk 0:02:41]} 16. Be3 {[%clk 0:02:29]}  Nc5 {[%clk 0:02:35]} 17. Bxc5 {[%clk 0:02:17]}  bxc5 {[%clk 0:02:36]} 18. Nd2 {[%clk 0:02:17]}  Qe8 {[%clk 0:02:12]} 19. Bc4 {[%clk 0:02:10]}  Qf7 {[%clk 0:02:09]} 20. Bxe6 {[%clk 0:02:10]}  Qxe6 {[%clk 0:02:10]} 21. Qe2 {[%clk 0:02:11]}  Kh7 {[%clk 0:01:56]} 22. Qc4 {[%clk 0:02:05]}  Qd7 {[%clk 0:01:38]} 23. Qe2 {[%clk 0:02:05]}  Qe8 {[%clk 0:01:36]} 24. Nc4 {[%clk 0:02:01]}  Nh5 {[%clk 0:01:30]} 25. g3 {[%clk 0:01:58]}  Qg6 {[%clk 0:01:29]} 26. Qg4 {[%clk 0:01:59]}  Qf7 {[%clk 0:01:19]} 27. Na5 {[%clk 0:01:46]}  Nf6 {[%clk 0:01:02]} 28. Qf5+ {[%clk 0:01:37]}  g6 {[%clk 0:01:01]} 29. Qf3 {[%clk 0:01:37]}  Qe6 {[%clk 0:00:58]} 30. Kg2 {[%clk 0:01:37]}  Rf7 {[%clk 0:00:36]} 31. Nc6 {[%clk 0:01:36]}  Qc4 {[%clk 0:00:33]} 32. Qd3 {[%clk 0:01:36]}  Qe6 {[%clk 0:00:29]} 33. Nd5 {[%clk 0:01:36]}  Nxd5 {[%clk 0:00:24]} 34. Qxd5 {[%clk 0:01:37]}  Qxd5 {[%clk 0:00:20]} 35. exd5 {[%clk 0:01:38]}  Bg5 {[%clk 0:00:21]} 36. c4 {[%clk 0:01:36]}  Bd2 {[%clk 0:00:19]} 37. Ra2 {[%clk 0:01:36]}  Bc3 {[%clk 0:00:19]} 38. Re2 {[%clk 0:01:35]}  Bd4 {[%clk 0:00:20]} 39. Re4 {[%clk 0:01:35]}  g5 {[%clk 0:00:19]} 40. h4 {[%clk 0:01:27]}  Kg6 {[%clk 0:00:19]} 41. f3 {[%clk 0:01:27]}  Kg7 {[%clk 0:00:14]} 42. hxg5 {[%clk 0:01:26]}  hxg5 {[%clk 0:00:14]} 43. f4 {[%clk 0:01:27]}  gxf4 {[%clk 0:00:13]} 44. gxf4 {[%clk 0:01:27]}  exf4 {[%clk 0:00:12]} 45. Rexf4 {[%clk 0:01:26]}  Rxf4 {[%clk 0:00:12]} 46. Rxf4 {[%clk 0:01:27]}  Bf6 {[%clk 0:00:12]} 47. Kf3 {[%clk 0:01:21]}  Kf7 {[%clk 0:00:12]} 48. Rg4 {[%clk 0:01:16]}  Kf8 {[%clk 0:00:11]} 49. Kf4 {[%clk 0:01:16]}  Kf7 {[%clk 0:00:11]} 50. Kf5 {[%clk 0:01:17]}  Bc3 {[%clk 0:00:10]} 51. Rh4 {[%clk 0:01:16]}  Kg7 {[%clk 0:00:09]} 52. Ke6 {[%clk 0:01:16]} 1-0


[Site "https://www.chess.com"]

[Event "Titled Tuesday Blitz February 21 Late 2023"]
[White "Salimova, Nurgyul"]
[Black "ArchibaldCerveza29"]
[WhiteFideId "2915138"]
[WhiteElo "2391"]
[BlackElo "2503"]
[Result "0-1"]
[Round "03"]
[TimeControl "180+2"]
[Date "2023.02.21"]
[WhiteClock "0:00:07"]
[BlackClock "0:01:10"]

1. d4 {[%clk 0:02:58]}  d5 {[%clk 0:03:00]} 2. Nf3 {[%clk 0:02:58]}  Nf6 {[%clk 0:03:00]} 3. c4 {[%clk 0:02:58]}  e6 {[%clk 0:03:00]} 4. Nc3 {[%clk 0:02:58]}  c6 {[%clk 0:02:59]} 5. Bg5 {[%clk 0:02:57]}  Nbd7 {[%clk 0:02:59]} 6. e3 {[%clk 0:02:57]}  Qa5 {[%clk 0:02:59]} 7. Bxf6 {[%clk 0:02:34]}  Nxf6 {[%clk 0:03:00]} 8. Nd2 {[%clk 0:02:33]}  Bb4 {[%clk 0:02:58]} 9. Qc2 {[%clk 0:02:28]}  O-O {[%clk 0:02:57]} 10. Bd3 {[%clk 0:02:25]}  c5 {[%clk 0:02:49]} 11. dxc5 {[%clk 0:02:11]}  dxc4 {[%clk 0:02:46]} 12. Bxc4 {[%clk 0:01:56]}  Qxc5 {[%clk 0:02:44]} 13. a3 {[%clk 0:01:51]}  Bxc3 {[%clk 0:02:42]} 14. Qxc3 {[%clk 0:01:49]}  b6 {[%clk 0:02:21]} 15. Qb4 {[%clk 0:01:20]}  Qg5 {[%clk 0:02:17]} 16. O-O-O {[%clk 0:00:56]}  Bb7 {[%clk 0:01:55]} 17. Kb1 {[%clk 0:00:52]}  Rfd8 {[%clk 0:01:45]} 18. h4 {[%clk 0:00:48]}  Qxg2 {[%clk 0:01:31]} 19. Rhg1 {[%clk 0:00:42]}  Qxf2 {[%clk 0:01:30]} 20. Rgf1 {[%clk 0:00:29]}  Qxe3 {[%clk 0:01:26]} 21. Rfe1 {[%clk 0:00:20]}  Qf4 {[%clk 0:01:23]} 22. Rxe6 {[%clk 0:00:14]}  Qf5+ {[%clk 0:01:18]} 23. Ka1 {[%clk 0:00:14]}  fxe6 {[%clk 0:01:17]} 24. Qe7 {[%clk 0:00:15]}  Bd5 {[%clk 0:01:13]} 25. Rf1 {[%clk 0:00:14]}  Qg6 {[%clk 0:01:10]} 26. h5 {[%clk 0:00:07]}  Qf7 {[%clk 0:01:10]} 0-1


[Site "https://www.chess.com"]

[Event "Titled Tuesday Blitz February 21 Late 2023"]
[White "Horvath, Dominik"]
[Black "Buchenau, Frank"]
[WhiteFideId "1642561"]
[BlackFideId "4604350"]
[WhiteElo "2523"]
[BlackElo "2222"]
[Result "1-0"]
[Round "03"]
[TimeControl "180+2"]
[Date "2023.02.21"]
[WhiteClock "0:02:01"]
[BlackClock "0:00:13"]

1. f4 {[%clk 0:03:00]}  d5 {[%clk 0:02:58]} 2. Nf3 {[%clk 0:02:59]}  g6 {[%clk 0:02:58]} 3. g3 {[%clk 0:02:58]}  Bg7 {[%clk 0:02:58]} 4. Bg2 {[%clk 0:02:59]}  Nf6 {[%clk 0:02:58]} 5. O-O {[%clk 0:02:58]}  O-O {[%clk 0:02:58]} 6. d3 {[%clk 0:02:59]}  c5 {[%clk 0:02:58]} 7. Nc3 {[%clk 0:02:59]}  d4 {[%clk 0:02:56]} 8. Ne4 {[%clk 0:02:57]}  Nxe4 {[%clk 0:02:55]} 9. dxe4 {[%clk 0:02:58]}  Nc6 {[%clk 0:02:52]} 10. e3 {[%clk 0:02:58]}  e5 {[%clk 0:02:36]} 11. exd4 {[%clk 0:02:54]}  cxd4 {[%clk 0:02:21]} 12. f5 {[%clk 0:02:51]}  gxf5 {[%clk 0:02:11]} 13. Nh4 {[%clk 0:02:50]}  f4 {[%clk 0:01:59]} 14. Nf5 {[%clk 0:02:51]}  Bxf5 {[%clk 0:01:27]} 15. exf5 {[%clk 0:02:52]}  fxg3 {[%clk 0:01:25]} 16. hxg3 {[%clk 0:02:53]}  Kh8 {[%clk 0:01:14]} 17. Qh5 {[%clk 0:02:40]}  Bf6 {[%clk 0:01:10]} 18. g4 {[%clk 0:02:18]}  Rg8 {[%clk 0:01:05]} 19. Rf3 {[%clk 0:02:17]}  Qf8 {[%clk 0:00:56]} 20. Rh3 {[%clk 0:02:13]}  Qg7 {[%clk 0:00:56]} 21. g5 {[%clk 0:02:13]}  Nb4 {[%clk 0:00:14]} 22. Rh2 {[%clk 0:02:05]}  Rac8 {[%clk 0:00:13]} 23. gxf6 {[%clk 0:02:01]} 1-0


[Site "https://www.chess.com"]